bitfinex/quotes_SOLUSD_20251031
["timestamp","ask_amount","ask_price","bid_price","bid_amount"]
[1761914960689,7.58449607,187.42,187.39,0.7]
[1761914961585,7.58449607,187.43,187.39,0.7]
[1761914961791,7.58449607,187.44,187.39,13.62095125]
[1761914961989,7.58449607,187.44,187.4,0.7]
[1761914962685,5.33447337,187.46,187.4,0.7]
[1761914963006,7.58449607,187.44,187.4,0.7]
[1761914963307,7.58449607,187.44,187.4,6.03615976]
[1761914963606,7.58449607,187.44,187.41,0.7]
[1761914964713,20.592,187.47,187.41,0.7]
[1761914964908,7.58449607,187.44,187.41,0.7]
[1761914965891,7.58449607,187.43,187.38,12.92100438]
[1761914966123,7.58449607,187.42,187.37,8.28449607]
[1761914966410,7.58449607,187.43,187.38,7.58449607]
[1761914966728,7.58449607,187.43,187.38,8.28449607]
[1761914966928,7.58449607,187.44,187.39,8.28449607]
[1761914967214,7.58449607,187.44,187.4,5.33617929]
[1761914967396,7.58449607,187.44,187.4,6.03617929]
[1761914967599,7.58449607,187.44,187.41,0.7]
[1761914967993,7.58449607,187.43,187.41,0.7]
[1761914968504,9.78882769,187.41,187.31,20.93083106]
[1761914968713,7.58449607,187.38,187.33,7.58449607]
[1761914968892,7.58449607,187.38,187.34,0.71]
[1761914969413,7.58449607,187.37,187.34,0.71]
[1761914970521,29.03453906,187.41,187.34,0.71]
[1761914970727,7.58449607,187.35,187.32,0.71]
[1761914972425,7.58449607,187.35,187.32,6.04844595]
[1761914972616,7.58449607,187.34,187.32,0.71]
[1761914973026,7.58449607,187.35,187.32,0.71]
[1761914973407,7.58449607,187.35,187.32,6.0484335]
[1761914973925,7.58449607,187.35,187.33,0.71]
[1761914974127,7.58449607,187.37,187.33,0.71]
[1761914974424,7.58449607,187.36,187.33,0.71]
[1761914974605,7.58449607,187.37,187.33,0.71]
[1761914975027,7.58449607,187.36,187.33,0.71]
[1761914975724,7.58449607,187.35,187.33,0.71]
[1761914977025,21.162,187.4,187.33,0.71]
[1761914977026,7.58449607,187.36,187.33,6.0479505]
[1761914977338,7.58449607,187.36,187.33,0.71]
[1761914977519,7.58449607,187.36,187.34,0.71]
[1761914977707,21.162,187.4,187.34,0.71]
[1761914977708,7.58449607,187.38,187.34,0.71]
[1761914978315,7.58449607,187.39,187.34,8.29449607]
[1761914978816,7.58449607,187.39,187.35,0.71]
[1761914979017,20.592,187.4,187.35,0.71]
[1761914979238,7.58449607,187.38,187.35,0.71]
[1761914979435,7.58449607,187.4,187.36,5.33731853]
[1761914979820,7.58449607,187.4,187.37,0.71]
[1761914980848,7.58449607,187.41,187.37,0.71]
[1761914982608,7.58449607,187.4,187.37,0.71]
[1761914983107,5.33568972,187.42,187.32,0.28432314]
[1761914983108,7.58449607,187.38,187.32,0.71]
[1761914983311,7.58449607,187.35,187.32,0.71]
[1761914983508,7.58449607,187.36,187.32,0.71]
[1761914983710,7.58449607,187.37,187.32,8.29449607]
[1761914984231,7.58449607,187.37,187.33,0.71]
[1761914984436,5.33684357,187.38,187.33,0.71]
[1761914984730,7.58449607,187.36,187.33,0.71]
[1761914985838,7.58449607,187.36,187.33,6.04813151]
[1761914986041,7.58449607,187.36,187.34,0.71]
[1761914986534,7.58449607,187.38,187.34,0.71]
[1761914987758,15.12473108,187.41,187.34,6.04768418]
[1761914988042,7.58449607,187.38,187.34,6.04768418]
[1761914988219,7.58449607,187.38,187.35,0.71]
[1761914989436,3.0833298,187.38,187.35,6.04745459]
[1761914989612,3.0833298,187.39,187.35,6.04745459]
[1761914989809,3.0833298,187.39,187.36,0.71]
[1761914991633,3.0833298,187.42,187.37,3.0833298]
[1761914992011,0.57,187.46,187.38,3.7933298]
[1761914992229,3.0833298,187.44,187.39,3.0833298]
[1761914992416,3.0833298,187.44,187.39,3.7933298]
[1761914992620,3.0833298,187.44,187.4,0.71]
[1761914992841,3.0833298,187.43,187.4,0.71]
[1761914995237,3.0833298,187.43,187.38,9.13002831]
[1761914995425,3.0833298,187.43,187.39,0.71]
[1761914996023,3.0833298,187.43,187.39,6.04645528]
[1761914996222,3.0833298,187.43,187.4,0.71]
[1761914996423,3.0833298,187.44,187.4,0.71]
[1761914997020,3.0833298,187.43,187.4,0.71]
[1761914997342,3.0833298,187.43,187.38,3.7933298]
[1761914997544,3.0833298,187.43,187.39,0.71]
[1761914998621,3.0833298,187.43,187.39,6.04644734]
[1761914998950,3.0833298,187.44,187.39,9.12977714]
[1761914999243,6.5880269,187.46,187.4,3.7433298]
[1761914999444,3.90414902,187.45,187.4,3.7433298]
[1761914999632,3.90414902,187.45,187.41,0.66]
[1761915000344,3.90414902,187.45,187.41,3.7433298]
[1761915000642,3.90414902,187.45,187.44,3.0833298]
[1761915000848,3.90414902,187.47,187.44,3.0833298]
[1761915001034,11.92160907,187.5,187.45,0.68]
[1761915001229,6.99048224,187.49,187.45,0.68]
[1761915001435,3.90715244,187.48,187.45,0.68]
[1761915001750,3.90715244,187.48,187.45,6.01471177]
[1761915002120,3.90715244,187.48,187.46,0.68]
[1761915002334,3.90715244,187.47,187.46,0.68]
[1761915002624,3.90715244,187.47,187.44,0.68]
[1761915002851,3.90715244,187.47,187.45,0.68]
[1761915003754,3.90715244,187.47,187.43,0.68]
[1761915003755,5.87821642,187.47,187.43,0.68]
[1761915003941,1.97106398,187.47,187.44,0.68]
[1761915004138,5.33400028,187.48,187.44,0.68]
[1761915004341,1.97106398,187.48,187.44,0.68]
[1761915004531,1.97106398,187.47,187.44,0.68]
[1761915004948,1.97106398,187.48,187.44,0.68]
[1761915005446,5.33334387,187.5,187.44,0.68]
[1761915005754,4.47421961,187.49,187.41,47.5]
[1761915006052,4.47421961,187.49,187.39,0.68]
[1761915006053,1.97106398,187.43,187.39,0.68]
[1761915006432,1.97106398,187.4,187.37,0.68]
[1761915006633,1.97106398,187.4,187.35,7.30861464]
[1761915006941,1.97106398,187.4,187.36,0.68]
[1761915007152,0.57,187.42,187.36,0.68]
[1761915007463,3.5046971,187.46,187.38,5.02390649]
[1761915007464,8.93026539,187.43,187.38,5.02390649]
[1761915007636,5.02390649,187.43,187.38,5.02390649]
[1761915007836,5.02390649,187.43,187.39,6.01646405]
[1761915008038,18.6280085,187.46,187.4,0.68]
[1761915008255,5.02390649,187.43,187.4,0.68]
[1761915008959,5.02390649,187.42,187.34,13.34437264]
[1761915009173,5.02390649,187.4,187.36,0.68]
[1761915009476,5.02390649,187.39,187.36,0.68]
[1761915010352,5.02390649,187.39,187.36,6.01727462]
[1761915010658,5.02390649,187.39,187.36,0.68]
[1761915011437,5.02390649,187.41,187.36,5.70390649]
[1761915011663,5.02390649,187.41,187.36,6.01718805]
[1761915011860,5.02390649,187.41,187.37,0.68]
[1761915014060,5.02390649,187.41,187.37,6.01682804]
[1761915014235,5.02390649,187.4,187.37,0.68]
[1761915014664,5.02390649,187.38,187.36,47.5]
[1761915015238,8.9360521,187.37,187.33,0.68]
[1761915015442,5.02390649,187.36,187.33,0.68]
[1761915015842,5.02390649,187.35,187.33,0.68]
[1761915016043,5.02390649,187.36,187.33,0.68]
[1761915016458,5.02390649,187.36,187.33,6.01806431]
[1761915016759,5.02390649,187.37,187.33,0.68]
[1761915017065,5.02390649,187.37,187.34,0.68]
[1761915017750,5.02390649,187.38,187.34,0.68]
[1761915017951,5.02390649,187.38,187.34,6.01783824]
[1761915018149,5.02390649,187.38,187.35,0.68]
[1761915019079,5.02390649,187.36,187.33,0.7]
[1761915019243,5.02390649,187.37,187.33,0.7]
[1761915019444,3.5046971,187.39,187.33,5.72390649]
[1761915019663,8.94043025,187.38,187.33,5.72390649]
[1761915019844,5.02390649,187.38,187.34,0.7]
[1761915020175,5.02390649,187.38,187.34,6.03781311]
[1761915020470,5.02390649,187.37,187.29,5.6236365]
[1761915020653,5.02390649,187.36,187.31,5.02390649]
[1761915021053,5.02390649,187.37,187.32,5.72390649]
[1761915021563,3.5046971,187.41,187.36,5.02390649]
[1761915021874,5.02390649,187.42,187.37,5.02390649]
[1761915022042,3.91900219,187.41,187.34,0.28432314]
[1761915022245,8.94290868,187.41,187.37,5.33687564]
[1761915022481,5.02390649,187.42,187.37,10.36078213]
[1761915022782,3.91927426,187.41,187.38,0.7]
[1761915023653,3.91927426,187.41,187.39,5.33646405]
[1761915023976,8.52860359,187.44,187.39,5.02390649]
[1761915024148,3.91999812,187.43,187.4,0.7]
[1761915024858,5.02390649,187.45,187.4,5.72390649]
[1761915025058,3.5046971,187.46,187.38,5.33670807]
[1761915025059,8.94391041,187.44,187.41,0.7]
[1761915025243,5.02390649,187.44,187.41,0.7]
[1761915026949,5.02390649,187.45,187.41,0.7]
[1761915027152,3.91915224,187.44,187.41,6.03588548]
[1761915027553,3.91915224,187.44,187.39,5.33646405]
[1761915027758,8.94305873,187.44,187.4,0.7]
[1761915028077,5.02390649,187.44,187.4,6.03604135]
[1761915028580,5.02390649,187.44,187.41,0.7]
[1761915028878,5.02390649,187.44,187.4,0.69]
[1761915029471,1.97217919,187.44,187.4,0.69]
[1761915030170,1.97217919,187.42,187.39,5.33631272]
[1761915030470,5.33505366,187.44,187.38,5.33670566]
[1761915030677,3.91839152,187.43,187.4,0.69]
[1761915031467,5.47687629,187.45,187.4,2.66217919]
[1761915031676,1.97217919,187.45,187.4,2.66217919]
[1761915031874,1.97217919,187.45,187.42,5.33560986]
[1761915032059,9.78882769,187.47,187.42,5.33560986]
[1761915032264,8.83862223,187.48,187.42,5.33560986]
[1761915032265,3.5046971,187.48,187.44,1.97217919]
[1761915032578,3.91936939,187.47,187.45,0.69]
[1761915032776,3.5046971,187.51,187.45,0.69]
[1761915033076,3.91937687,187.5,187.47,1.97217919]
[1761915033278,3.91937687,187.5,187.48,0.69]
[1761915034180,3.91937687,187.49,187.48,0.69]
[1761915034380,3.91937687,187.51,187.48,0.69]
[1761915035282,4.48937687,187.51,187.45,0.69]
[1761915035480,5.89155606,187.5,187.45,0.69]
[1761915035664,3.91937687,187.49,187.45,2.66217919]
[1761915035862,3.91937687,187.49,187.45,0.69]
[1761915036266,3.91937687,187.49,187.45,6.02475587]
[1761915036670,3.91937687,187.49,187.46,0.69]
[1761915037585,0.2,187.52,187.47,5.01817057]
[1761915037779,0.2,187.52,187.48,5.01817057]
[1761915038090,4.11707109,187.52,187.48,5.01817057]
[1761915038258,4.11707109,187.52,187.48,5.70817057]
[1761915038463,5.01817057,187.51,187.46,0.69]
[1761915038675,3.91707109,187.5,187.47,0.69]
[1761915039074,5.01817057,187.51,187.47,0.69]
[1761915039880,5.01817057,187.48,187.43,5.33532518]
[1761915040082,5.01817057,187.47,187.43,5.33532518]
[1761915040282,5.01817057,187.47,187.43,6.02532518]
[1761915040481,5.01817057,187.47,187.44,0.69]
[1761915041786,5.01817057,187.46,187.41,5.70817057]
[1761915041972,5.01817057,187.46,187.42,0.69]
[1761915042372,5.01817057,187.46,187.42,6.02535793]
[1761915042776,5.01817057,187.46,187.43,0.69]
[1761915042967,5.01817057,187.47,187.43,0.69]
[1761915043370,8.8380831,187.5,187.43,0.69]
[1761915043371,5.01817057,187.48,187.43,0.69]
[1761915044194,5.01817057,187.48,187.44,5.33504054]
[1761915044567,5.01817057,187.48,187.45,0.69]
[1761915045871,5.01817057,187.46,187.41,0.69]
[1761915046081,23.12222854,187.5,187.4,5.33617929]
[1761915046082,5.01817057,187.43,187.4,5.33617929]
[1761915046389,3.5224553,187.49,187.41,0.69]
[1761915046390,5.01817057,187.44,187.41,0.69]
[1761915046599,5.01817057,187.42,187.38,9.60943642]
[1761915046898,5.01817057,187.39,187.38,9.60943642]
[1761915047769,5.01817057,187.39,187.38,10.29943642]
[1761915048672,5.01817057,187.39,187.38,15.63618527]
[1761915049098,5.01817057,187.4,187.38,15.63618527]
[1761915049499,5.33523774,187.44,187.39,0.69]
[1761915049685,5.01817057,187.41,187.39,0.69]
[1761915050376,5.01817057,187.42,187.39,0.69]
[1761915050576,3.52075079,187.45,187.39,6.02641767]
[1761915050882,5.01817057,187.44,187.4,0.69]
[1761915052484,5.01817057,187.44,187.4,6.02598203]
[1761915052996,5.01817057,187.44,187.41,0.69]
[1761915054183,5.01817057,187.43,187.39,0.69]
[1761915054399,5.01817057,187.43,187.4,0.69]
[1761915054774,5.01817057,187.43,187.38,14.94601372]
[1761915054975,5.01817057,187.39,187.38,9.60943642]
[1761915055501,5.01817057,187.4,187.38,9.60943642]
[1761915056383,0.57,187.42,187.38,9.60943642]
[1761915056593,5.01817057,187.4,187.38,9.60943642]
[1761915057188,5.01817057,187.39,187.38,9.60943642]
[1761915057509,1.97315189,187.39,187.38,9.60943642]
[1761915059888,7.87961594,187.39,187.38,9.60943642]
[1761915060091,6.45228563,187.39,187.38,9.60943642]
[1761915060294,5.88228563,187.39,187.38,9.60943642]
[1761915060706,11.21874968,187.39,187.38,9.60943642]
[1761915061301,6.99238866,187.39,187.38,9.60943642]
[1761915061491,12.89885271,187.39,187.38,9.60943642]
[1761915061691,9.81559779,187.39,187.38,9.60943642]
[1761915062005,12.89885271,187.39,187.38,9.60943642]
[1761915063816,6.99238866,187.39,187.38,9.60943642]
[1761915065103,3.08325492,187.39,187.38,9.60943642]
[1761915065424,6.99838879,187.39,187.38,9.60943642]
[1761915065925,12.33485284,187.39,187.38,9.60943642]
[1761915066300,3.91513387,187.39,187.38,9.60943642]
[1761915066615,6.99838879,187.39,187.38,9.60943642]
[1761915067294,3.08325492,187.39,187.38,9.60943642]
[1761915067611,6.999732,187.39,187.38,9.60943642]
[1761915067929,24.11275079,187.41,187.38,10.32943642]
[1761915068115,3.91784153,187.4,187.39,0.72]
[1761915068421,3.08325492,187.42,187.39,0.72]
[1761915068826,3.08325492,187.4,187.39,0.72]
[1761915069307,3.08325492,187.4,187.38,9.60943642]
[1761915069487,3.08325492,187.39,187.38,9.60943642]
[1761915069688,7.56916517,187.39,187.38,9.60943642]
[1761915069916,6.99916517,187.39,187.38,9.60943642]
[1761915071121,7.56916517,187.39,187.38,9.60943642]
[1761915071290,6.99916517,187.39,187.38,9.60943642]
[1761915071913,12.33562922,187.39,187.38,9.60943642]
[1761915072098,12.90562922,187.39,187.38,9.60943642]
[1761915072299,12.33562922,187.39,187.38,9.60943642]
[1761915072696,12.90562922,187.39,187.38,9.60943642]
[1761915072901,25.77771183,187.39,187.38,9.60943642]
[1761915073204,25.77771183,187.39,187.3,0.72]
[1761915073205,29.30187618,187.39,187.3,0.72]
[1761915073403,3.08325492,187.31,187.3,0.72]
[1761915073611,3.08325492,187.31,187.27,0.72]
[1761915073812,3.08325492,187.29,187.27,6.05984982]
[1761915074327,3.08325492,187.29,187.28,0.72]
[1761915075024,3.08325492,187.29,187.27,5.33984982]
[1761915075227,3.08325492,187.28,187.27,0.72]
[1761915075404,7.58939773,187.28,187.27,0.72]
[1761915075600,7.58939773,187.28,187.23,5.34091862]
[1761915075804,7.58939773,187.28,187.23,6.06091862]
[1761915076004,7.58939773,187.27,187.24,0.72]
[1761915076818,7.58939773,187.27,187.24,6.06065368]
[1761915077019,7.58939773,187.27,187.25,0.72]
[1761915077405,7.58939773,187.26,187.21,0.82]
[1761915077610,7.58939773,187.23,187.21,0.82]
[1761915078432,7.58939773,187.23,187.21,6.16156391]
[1761915078954,10.35882769,187.3,187.22,0.72]
[1761915079109,7.58939773,187.26,187.22,0.72]
[1761915080047,7.58939773,187.25,187.22,6.0611451]
[1761915080246,7.58939773,187.24,187.22,0.72]
[1761915080441,7.58939773,187.23,187.21,0.1]
[1761915080948,7.58939773,187.23,187.22,0.72]
[1761915081112,7.58939773,187.24,187.22,0.72]
[1761915081839,7.58939773,187.23,187.21,0.1]
[1761915082015,7.58939773,187.22,187.21,0.1]
[1761915082432,5.34022516,187.26,187.21,0.75]
[1761915082636,7.58939773,187.22,187.21,0.75]
[1761915083732,7.58939773,187.22,187.08,0.53453068]
[1761915083935,7.58939773,187.19,187.14,7.58939773]
[1761915084144,7.58939773,187.21,187.16,7.58939773]
[1761915084322,7.58939773,187.19,187.14,7.58939773]
[1761915084511,7.58939773,187.19,187.13,7.58939773]
[1761915084910,7.58939773,187.19,187.14,0.65]
[1761915085321,20.592,187.22,187.15,5.3433075]
[1761915085528,7.58939773,187.19,187.15,5.3433075]
[1761915085720,7.58939773,187.19,187.16,0.65]
[1761915086349,7.58939773,187.18,187.16,0.65]
[1761915087530,7.58939773,187.18,187.17,5.34273654]
[1761915087916,7.58939773,187.18,187.17,5.99273654]
[1761915088351,20.592,187.22,187.17,5.99273654]
[1761915088516,7.58939773,187.19,187.18,0.65]
[1761915088716,20.592,187.22,187.18,0.65]
[1761915089120,7.58939773,187.19,187.18,0.65]
[1761915089923,7.58939773,187.21,187.18,5.99245111]
[1761915090466,7.58939773,187.2,187.19,0.67]
[1761915092962,7.58939773,187.2,187.19,6.01216571]
[1761915093173,13.34991028,187.27,187.19,6.01216571]
[1761915093174,5.348,187.23,187.19,13.60156344]
[1761915093473,5.348,187.23,187.2,0.67]
[1761915093972,5.348,187.23,187.21,5.341595]
[1761915094278,5.348,187.23,187.21,0.67]
[1761915094443,12.93739773,187.23,187.21,0.67]
[1761915094644,5.348,187.23,187.22,0.67]
[1761915094875,12.93739773,187.23,187.22,0.67]
[1761915095082,5.348,187.23,187.22,0.67]
[1761915095246,5.348,187.24,187.22,0.67]
[1761915096061,5.348,187.24,187.23,5.3410244]
[1761915096266,5.348,187.26,187.23,5.3410244]
[1761915096566,5.348,187.26,187.24,0.67]
[1761915097582,3.08668449,187.29,187.24,3.75668449]
[1761915098084,3.08668449,187.3,187.26,18.69059061]
[1761915098462,3.08668449,187.29,187.27,0.67]
[1761915100175,3.08668449,187.29,187.27,6.00984868]
[1761915100569,3.08668449,187.29,187.27,5.33984868]
[1761915100771,3.08668449,187.29,187.28,0.67]
[1761915102583,3.08668449,187.29,187.28,6.00959846]
[1761915103892,3.08668449,187.29,187.28,0.67]
[1761915104073,3.08668449,187.29,187.27,0.67]
[1761915104765,9.78882769,187.32,187.28,5.33959846]
[1761915105115,3.51246023,187.38,187.31,3.08668449]
[1761915105333,0.57,187.4,187.28,18.68859461]
[1761915105334,22.27024292,187.41,187.32,3.75668449]
[1761915105496,3.08668449,187.37,187.32,0.67]
[1761915105698,3.08668449,187.35,187.33,0.67]
[1761915106289,12.87551218,187.37,187.33,0.67]
[1761915106710,12.87551218,187.37,187.34,5.33788833]
[1761915107219,12.87551218,187.37,187.35,0.67]
[1761915108108,12.87551218,187.37,187.33,0.67]
[1761915108310,23.67868449,187.38,187.33,19.35360646]
[1761915108512,3.08668449,187.38,187.33,19.35360646]
[1761915108696,3.08668449,187.38,187.34,0.67]
[1761915109086,3.08668449,187.37,187.34,0.67]
[1761915109585,3.08668449,187.38,187.34,0.67]
[1761915109896,3.08668449,187.38,187.35,5.33760341]
[1761915110324,3.08668449,187.37,187.33,5.33792035]
[1761915110511,3.08668449,187.35,187.32,5.33842019]
[1761915110827,3.08668449,187.34,187.31,0.67]
[1761915111111,3.08668449,187.33,187.29,0.67]
[1761915111891,3.08668449,187.32,187.29,6.00931336]
[1761915112089,0.57,187.35,187.29,6.00931336]
[1761915112090,3.08668449,187.31,187.29,6.00931336]
[1761915112390,3.08668449,187.32,187.29,6.00931336]
[1761915112802,3.08668449,187.32,187.29,5.33931336]
[1761915113004,3.08668449,187.32,187.3,0.67]
[1761915113318,9.78882769,187.32,187.3,0.67]
[1761915114121,9.78882769,187.32,187.3,6.00875826]
[1761915114711,3.08668449,187.33,187.31,0.67]
[1761915115731,3.08668449,187.34,187.31,0.67]
[1761915115932,3.08668449,187.33,187.29,6.00931336]
[1761915116103,3.08668449,187.33,187.3,0.67]
[1761915117230,3.08668449,187.34,187.31,5.33874325]
[1761915117613,12.87551218,187.35,187.32,0.67]
[1761915118423,3.08668449,187.35,187.32,0.67]
[1761915119229,3.08668449,187.35,187.33,5.33817327]
[1761915119528,3.08668449,187.35,187.33,6.03817327]
[1761915119701,3.08668449,187.35,187.33,5.33817327]
[1761915119902,3.08668449,187.35,187.31,6.0385706]
[1761915120425,3.08668449,187.36,187.32,0.7]
[1761915120621,3.08668449,187.37,187.32,3.78668449]
[1761915120804,3.08668449,187.37,187.32,0.7]
[1761915121002,3.08668449,187.36,187.33,0.7]
[1761915121312,1.97362522,187.36,187.33,6.03798809]
[1761915121506,1.97362522,187.36,187.33,0.7]
[1761915121711,1.97362522,187.36,187.32,5.33841481]
[1761915122012,1.97362522,187.36,187.33,0.7]
[1761915122207,1.97362522,187.34,187.3,52.83900482]
[1761915122529,13.87951941,187.38,187.32,0.7]
[1761915122705,11.76245291,187.38,187.32,2.67362522]
[1761915123134,11.76245291,187.38,187.33,0.7]
[1761915123305,11.76245291,187.38,187.34,5.33788833]
[1761915123726,0.57,187.41,187.35,0.7]
[1761915124028,1.97362522,187.4,187.35,0.7]
[1761915124210,1.97362522,187.39,187.35,0.7]
[1761915125606,1.97362522,187.38,187.35,6.03732356]
[1761915126611,9.78882769,187.4,187.36,0.7]
[1761915126816,11.76245291,187.4,187.36,0.7]
[1761915127018,1.97362522,187.4,187.36,0.7]
[1761915127603,1.97362522,187.41,187.37,5.33703367]
[1761915127809,9.78882769,187.44,187.37,20.65324308]
[1761915128008,18.83745133,187.45,187.38,2.67362522]
[1761915128233,17.29125898,187.45,187.39,1.97362522]
[1761915128434,9.78882769,187.45,187.39,2.67362522]
[1761915128639,11.76245291,187.45,187.39,2.67362522]
[1761915128817,11.76245291,187.45,187.4,0.7]
[1761915129027,1.97362522,187.43,187.38,2.67362522]
[1761915129223,1.97362522,187.44,187.38,50.17362522]
[1761915129539,1.97362522,187.43,187.39,0.7]
[1761915129838,1.97362522,187.43,187.4,5.33617929]
[1761915130412,1.97362522,187.43,187.38,53.53647652]
[1761915130612,1.97362522,187.43,187.39,0.7]
[1761915131114,1.97362522,187.44,187.39,0.7]
[1761915132029,1.97362522,187.44,187.4,5.33617929]
[1761915132209,10.35882769,187.45,187.4,5.33617929]
[1761915132411,1.97362522,187.44,187.4,6.03617929]
[1761915132611,1.97362522,187.44,187.41,0.7]
[1761915132826,1.97362522,187.44,187.4,6.03617929]
[1761915133043,1.97362522,187.44,187.38,62.81549735]
[1761915133044,1.97362522,187.42,187.39,5.33641553]
[1761915133217,15.12370129,187.45,187.38,61.54187213]
[1761915133218,1.97362522,187.41,187.38,53.53666653]
[1761915133420,1.97362522,187.39,187.38,47.5]
[1761915133734,1.97362522,187.39,187.34,0.7]
[1761915133929,1.97362522,187.38,187.34,0.7]
[1761915134245,1.97362522,187.38,187.35,5.33760341]
[1761915134634,1.97362522,187.38,187.35,6.03760341]
[1761915134830,16.6175006,187.4,187.35,6.03760341]
[1761915135140,1.97362522,187.38,187.35,6.03760341]
[1761915136130,1.97362522,187.38,187.35,0.7]
[1761915137335,21.9536965,187.4,187.35,6.03760057]
[1761915137546,1.97362522,187.39,187.35,6.03760057]
[1761915137844,9.78882769,187.42,187.36,2.67362522]
[1761915137845,11.76245291,187.42,187.36,2.67362522]
[1761915138142,1.97362522,187.42,187.37,0.7]
[1761915138345,18.01940919,187.42,187.37,2.67362522]
[1761915138648,1.97362522,187.42,187.37,2.67362522]
[1761915138939,1.97362522,187.42,187.39,5.33646405]
[1761915139543,1.97362522,187.42,187.39,6.03646405]
[1761915139721,15.12529174,187.43,187.39,0.7]
[1761915139922,1.97362522,187.42,187.39,0.7]
[1761915140642,1.97362522,187.4,187.35,48.2]
[1761915140823,1.97362522,187.39,187.36,6.03731853]
[1761915141331,1.97362522,187.39,187.37,0.7]
[1761915142242,1.97362522,187.4,187.38,5.33674885]
[1761915143628,1.97362522,187.4,187.36,5.33731853]
[1761915144062,1.97362522,187.4,187.37,0.72]
[1761915144725,4.37653313,187.49,187.39,1.97362522]
[1761915144934,4.30561022,187.52,187.45,1.97362522]
[1761915145229,4.30561022,187.52,187.39,1.97362522]
[1761915145230,1.97362522,187.46,187.39,1.97362522]
[1761915145435,1.97362522,187.43,187.39,0.72]
[1761915145632,9.78882769,187.46,187.39,0.72]
[1761915145633,1.97362522,187.42,187.39,0.72]
[1761915145837,11.76245291,187.44,187.39,8.02997665]
[1761915146137,9.78882769,187.46,187.39,21.37113679]
[1761915146364,1.97362522,187.45,187.4,0.72]
[1761915146533,1.97362522,187.44,187.4,0.72]
[1761915147032,37.2043518,187.47,187.4,0.72]
[1761915147224,1.97362522,187.45,187.4,0.72]
[1761915147426,1.97362522,187.44,187.41,5.33589456]
[1761915147925,1.97362522,187.43,187.4,0.72]
[1761915148349,19.22904515,187.46,187.4,0.72]
[1761915148548,3.53573937,187.46,187.4,8.02976735]
[1761915148734,1.97362522,187.45,187.4,6.05614213]
[1761915149049,1.97362522,187.45,187.41,0.69]
[1761915149468,1.97362522,187.45,187.42,5.33560986]
[1761915149964,32.35445291,187.46,187.42,5.33560986]
[1761915150142,11.76245291,187.48,187.43,2.66362522]
[1761915150348,20.592,187.47,187.43,2.66362522]
[1761915150569,20.592,187.47,187.44,0.69]
[1761915151460,0.57,187.51,187.45,5.33475593]
[1761915151779,9.78882769,187.41,187.32,0.69]
[1761915152061,1.97362522,187.35,187.31,0.69]
[1761915152268,1.97362522,187.33,187.23,0.69]
[1761915152445,1.97362522,187.33,187.27,1.97362522]
[1761915152646,9.78882769,187.35,187.27,1.97362522]
[1761915152842,9.78882769,187.35,187.31,5.33874325]
[1761915153362,1.97362522,187.36,187.32,0.69]
[1761915153662,1.97362522,187.35,187.32,0.69]
[1761915153855,1.97362522,187.34,187.32,0.69]
[1761915154564,1.97362522,187.34,187.32,6.02826917]
[1761915155762,9.78882769,187.37,187.32,6.02826917]
[1761915155964,1.97362522,187.35,187.32,0.69]
[1761915156163,9.78882769,187.37,187.33,0.69]
[1761915156368,1.97362522,187.38,187.33,0.69]
[1761915156740,1.97362522,187.38,187.33,2.66362522]
[1761915157259,1.97362522,187.38,187.35,5.33760341]
[1761915157562,5.02405493,187.38,187.35,5.33760341]
[1761915157757,5.02405493,187.38,187.36,0.69]
[1761915158151,5.02405493,187.39,187.36,0.69]
[1761915158354,5.02405493,187.39,187.36,6.0270692]
[1761915158842,5.02405493,187.39,187.36,5.3370692]
[1761915159041,30.38082769,187.41,187.37,0.69]
[1761915159042,5.02405493,187.41,187.37,0.69]
[1761915159243,5.02405493,187.39,187.36,6.0270692]
[1761915159452,5.02405493,187.37,187.36,5.3370692]
[1761915159857,5.02405493,187.38,187.36,5.3370692]
[1761915160440,5.02405493,187.37,187.33,13.3450879]
[1761915160645,5.02405493,187.36,187.33,13.3450879]
[1761915161173,5.02405493,187.36,187.33,14.0350879]
[1761915161347,5.02405493,187.36,187.34,5.33785873]
[1761915161549,5.02405493,187.39,187.34,0.69]
[1761915161759,5.02405493,187.39,187.35,0.69]
[1761915162464,9.78882769,187.39,187.35,0.69]